[Event "Turkish Second League 2019"]
[Site "Konya"]
[Date "2019.07.27"]
[Round "8"]
[White "Ozates, Tuna"]
[Black "Topak, Engin"]
[Result "1-0"]
[ECO "D04"]
[WhiteElo "2218"]
[BlackElo "2206"]
[Annotator "NA"]
[PlyCount "67"]
[EventDate "2019.07.22"]
[EventType "team-tourn"]
[EventCountry "TUR"]
[SourceTitle "playchess.com"]
[Source "ChessBase"]
[SourceQuality "1"]
[TimeControl "5400+30"]

1. d4 d5 {[%emt 0:00:30]} 2. Nf3 {[%emt 0:00:00]} Nf6 {[%emt 0:00:30]} 3. e3 {[%emt 0:00:30]} Bf5 {[%emt 0:00:00]} 4. Bd3 {[%emt 0:04:30]} Bxd3 {[%emt 0:02:00]} 5. Qxd3 {[%emt 0:00:30]} Nbd7 {[%emt 0:01:30]} 6. O-O {[%emt 0:02:30]} e6 {[%emt 0:07:30]} 7. b3 {[%emt 0:00:30]} c6 {[%emt 0:23:30]} 8. c4 {[%emt 0:01:30]} Ne4 {[%emt 0:10:30]} 9. Nfd2 {[%emt 0:03:30]} Nxd2 {[%emt 0:04:30]} 10. Nxd2 {[%emt 0:01:30]} f5 {[%emt 0:06:30]} 11. f3 {[%emt 0:04:30]} Bd6 {[%emt 0:00:00]} 12. Bb2 {[%emt 0:10:30]} Qh4 {[%emt 0:01:00]} 13. f4 {[%emt 0:06:30]} O-O {[%emt 0:02:30]} 14. c5 {[%emt 0:05:30]} Bc7 {[%emt 0:01:30]} 15. b4 {[%emt 0:01:30]} a6 {[%emt 0:00:30]} 16. a4 {[%emt 0:00:00]} Qe7 {[%emt 0:03:30]} 17. b5 {[%emt 0:12:00]} Nf6 {[%emt 0:07:30]} 18. bxc6 {[%emt 0:02:30]} bxc6 {[%emt 0:00:30]} 19. Bc3 {[%emt 0:00:30]} Rfb8 {[%emt 0:04:30]} 20. Rab1 {[%emt 0:00:00]} Qd8 {[%emt 0:01:30]} 21. Rxb8 {[%emt 0:01:00]} Qxb8 {[%emt 0:00:30]} 22. Rb1 {[%emt 0:03:30]} Qc8 {[%emt 0:00:30]} 23. Nf3 {[%emt 0:04:30]} Rb8 {[%emt 0:00:00]} 24. Rxb8 {[%emt 0:29:29]} Bxb8 {[%emt 0:00:00]} 25. Ba5 {[%emt 0:00:30]} h6 {[%emt 0:00:00]} 26. Ne1 {[%emt 0:00:30]} Qb7 {[%emt 0:00:00]} 27. Bb6 {[%emt 0:00:30]} g5 {[%emt 0:00:00]} 28. g3 {[%emt 0:00:30]} Nd7 {[%emt 0:00:00]} 29. a5 {[%emt 0:00:30]} Ba7 {[%emt 0:01:30]} 30. fxg5 {[%emt 0:02:59]} hxg5 {[%emt 0:00:30]} 31. g4 {[%emt 0:00:30]} Bb8 {[%emt 0:00:30]} 32. gxf5 {[%emt 0:00:30]} Nf6 {[%emt 0:03:33]} 33. fxe6 {[%emt 0:00:56]} Ne4 {[%emt 0:00:30]} 34. Qf1 {[%emt 0:00:48]} 1-0

[Event "Turkish Second League 2019"]
[Site "Konya"]
[Date "2019.07.27"]
[Round "8"]
[White "Kara, Yanki"]
[Black "Demirbag, Alihan"]
[Result "1/2-1/2"]
[ECO "E05"]
[WhiteElo "2193"]
[BlackElo "2087"]
[Annotator "NA"]
[PlyCount "26"]
[EventDate "2019.07.22"]
[EventType "team-tourn"]
[EventCountry "TUR"]
[SourceTitle "playchess.com"]
[Source "ChessBase"]
[SourceQuality "1"]
[TimeControl "5400+30"]

1. d4 {[%emt 0:00:30]} d5 {[%emt 0:00:30]} 2. c4 {[%emt 0:00:00]} e6 {[%emt 0:00:30]} 3. Nf3 {[%emt 0:00:00]} Nf6 {[%emt 0:00:30]} 4. g3 {[%emt 0:00:30]} Be7 {[%emt 0:00:30]} 5. Bg2 {[%emt 0:00:30]} dxc4 {[%emt 0:00:30]} 6. Qc2 {[%emt 0:00:00]} a6 {[%emt 0:00:00]} 7. Qxc4 {[%emt 0:00:00]} b5 {[%emt 0:00:00]} 8. Qc2 {[%emt 0:00:30]} Bb7 {[%emt 0:00:30]} 9. Bd2 {[%emt 0:00:30]} Be4 {[%emt 0:00:00]} 10. Qc1 {[%emt 0:00:00]} Bb7 {[%emt 0:00:00]} 11. Qc2 {[%emt 0:00:00]} Be4 {[%emt 0:00:30]} 12. Qc1 {[%emt 0:00:00]} Bb7 {[%emt 0:00:00]} 13. Qc2 {[%emt 0:00:00]} Be4 {[%emt 0:00:00]} 1/2-1/2

[Event "Turkish Second League 2019"]
[Site "Konya"]
[Date "2019.07.27"]
[Round "8"]
[White "Zor, Alber Kadir"]
[Black "Ozsakallioglu, Okan"]
[Result "1/2-1/2"]
[ECO "D14"]
[WhiteElo "2160"]
[BlackElo "2243"]
[Annotator "NA"]
[PlyCount "63"]
[EventDate "2019.07.22"]
[EventType "team-tourn"]
[EventCountry "TUR"]
[SourceTitle "playchess.com"]
[Source "ChessBase"]
[SourceQuality "1"]
[TimeControl "5400+30"]

1. d4 d5 {[%emt 0:00:30]} 2. c4 {[%emt 0:00:00]} c6 {[%emt 0:00:30]} 3. cxd5 {[%emt 0:01:30]} cxd5 {[%emt 0:00:30]} 4. Nc3 {[%emt 0:00:30]} Nc6 {[%emt 0:01:30]} 5. Nf3 {[%emt 0:00:30]} Nf6 {[%emt 0:00:30]} 6. Bf4 {[%emt 0:01:30]} Bf5 {[%emt 0:00:30]} 7. e3 {[%emt 0:00:00]} e6 {[%emt 0:00:00]} 8. Bd3 {[%emt 0:00:00]} Bxd3 {[%emt 0:00:00]} 9. Qxd3 {[%emt 0:00:30]} Bd6 {[%emt 0:00:30]} 10. Bxd6 {[%emt 0:00:00]} Qxd6 {[%emt 0:00:30]} 11. O-O {[%emt 0:00:00]} O-O {[%emt 0:00:00]} 12. a3 {[%emt 0:00:30]} a6 {[%emt 0:01:00]} 13. h3 {[%emt 0:00:30]} Rfc8 {[%emt 0:00:00]} 14. Rfc1 {[%emt 0:00:30]} h6 {[%emt 0:00:00]} 15. Rc2 {[%emt 0:00:30]} Rc7 {[%emt 0:00:30]} 16. Rac1 {[%emt 0:03:30]} Rac8 {[%emt 0:03:30]} 17. Ne2 {[%emt 0:00:30]} Ne7 {[%emt 0:00:30]} 18. Rxc7 {[%emt 0:00:30]} Rxc7 {[%emt 0:00:30]} 19. Rxc7 {[%emt 0:00:30]} Qxc7 {[%emt 0:00:30]} 20. Qc3 {[%emt 0:00:30]} Qxc3 {[%emt 0:00:30]} 21. Nxc3 {[%emt 0:00:30]} Nc6 {[%emt 0:00:30]} 22. Kf1 {[%emt 0:00:30]} Kf8 {[%emt 0:00:30]} 23. Ke2 {[%emt 0:00:30]} Ke7 {[%emt 0:00:30]} 24. Kd3 {[%emt 0:00:30]} Kd6 {[%emt 0:00:30]} 25. Nd2 {[%emt 0:00:30]} Nd7 {[%emt 0:00:30]} 26. b4 {[%emt 0:00:30]} b5 {[%emt 0:00:30]} 27. Nb3 {[%emt 0:00:30]} Nb6 {[%emt 0:00:30]} 28. Nc5 {[%emt 0:00:30]} Nc4 {[%emt 0:00:00]} 29. Nxa6 {[%emt 0:00:00]} Nxa3 {[%emt 0:00:00]} 30. h4 {[%emt 0:00:00]} h5 {[%emt 0:00:00]} 31. g3 {[%emt 0:00:00]} g6 {[%emt 0:00:00]} 32. f4 {[%emt 0:00:00]} 1/2-1/2

[Event "Turkish Second League 2019"]
[Site "Konya"]
[Date "2019.07.27"]
[Round "8"]
[White "Metin, Mehmet"]
[Black "Erdogan, Yunus Emre"]
[Result "1-0"]
[ECO "B40"]
[WhiteElo "2150"]
[BlackElo "1833"]
[Annotator "NA"]
[PlyCount "57"]
[EventDate "2019.07.22"]
[EventType "team-tourn"]
[EventCountry "TUR"]
[SourceTitle "playchess.com"]
[Source "ChessBase"]
[SourceQuality "1"]
[TimeControl "5400+30"]

1. e4 {[%emt 0:00:30]} c5 {[%emt 0:01:30]} 2. Nf3 {[%emt 0:02:30]} Nf6 {[%emt 0:01:30]} 3. e5 {[%emt 0:01:30]} Nd5 {[%emt 0:02:30]} 4. b3 {[%emt 0:00:30]} Nc6 {[%emt 0:04:30]} 5. Bb2 {[%emt 0:01:30]} e6 {[%emt 0:00:30]} 6. c4 {[%emt 0:05:30]} Nc7 {[%emt 0:03:30]} 7. g3 {[%emt 0:02:30]} Rb8 {[%emt 0:08:30]} 8. Bg2 {[%emt 0:08:30]} b5 {[%emt 0:03:30]} 9. d3 {[%emt 0:09:30]} Ba6 {[%emt 0:05:30]} 10. Nbd2 {[%emt 0:13:30]} d5 {[%emt 0:09:30]} 11. exd6 {[%emt 0:02:30]} Qxd6 {[%emt 0:00:30]} 12. Ne4 {[%emt 0:00:30]} Qd7 {[%emt 0:01:30]} 13. Ne5 {[%emt 0:08:30]} Nxe5 {[%emt 0:14:30]} 14. Bxe5 {[%emt 0:00:30]} Rd8 {[%emt 0:12:30]} 15. O-O {[%emt 0:01:30]} Bb7 {[%emt 0:06:30]} 16. Qg4 {[%emt 0:03:30]} Bxe4 {[%emt 0:06:30]} 17. dxe4 {[%emt 0:00:00]} h5 {[%emt 0:00:25]} 18. Qe2 {[%emt 0:02:00]} bxc4 {[%emt 0:02:57]} 19. Rad1 {[%emt 0:00:30]} Qc6 {[%emt 0:00:32]} 20. Rxd8+ {[%emt 0:01:30]} Kxd8 {[%emt 0:00:03]} 21. Rd1+ {[%emt 0:00:00]} Kc8 {[%emt 0:00:11]} 22. Qxc4 {[%emt 0:01:00]} h4 {[%emt 0:03:40]} 23. Bxc7 {[%emt 0:02:30]} Kxc7 {[%emt 0:02:43]} 24. e5 {[%emt 0:00:00]} Qb6 {[%emt 0:00:27]} 25. Qa4 {[%emt 0:00:00]} Be7 {[%emt 0:07:20]} 26. Qd7+ {[%emt 0:01:30]} Kb8 {[%emt 0:00:11]} 27. Qxe7 {[%emt 0:00:00]} hxg3 {[%emt 0:00:00]} 28. hxg3 {[%emt 0:00:00]} Qb4 {[%emt 0:01:46]} 29. Rd8+ {[%emt 0:00:00]} 1-0

[Event "Turkish Second League 2019"]
[Site "Konya"]
[Date "2019.07.27"]
[Round "8"]
[White "Tofan, Ibrahim"]
[Black "Duman, Aydin"]
[Result "0-1"]
[ECO "B01"]
[WhiteElo "2043"]
[BlackElo "2059"]
[Annotator "NA"]
[PlyCount "112"]
[EventDate "2019.07.22"]
[EventType "team-tourn"]
[EventCountry "TUR"]
[SourceTitle "playchess.com"]
[Source "ChessBase"]
[SourceQuality "1"]
[TimeControl "5400+30"]

1. e4 {[%emt 0:00:30]} d5 {[%emt 0:00:30]} 2. exd5 {[%emt 0:00:30]} Qxd5 {[%emt 0:00:30]} 3. Nc3 {[%emt 0:01:30]} Qd6 {[%emt 0:00:00]} 4. d4 {[%emt 0:00:30]} Nf6 {[%emt 0:00:00]} 5. Bc4 {[%emt 0:00:30]} c6 {[%emt 0:00:30]} 6. Nge2 {[%emt 0:00:30]} Be6 {[%emt 0:01:30]} 7. Bf4 {[%emt 0:05:30]} Qd7 {[%emt 0:00:30]} 8. Bd3 {[%emt 0:01:30]} g6 {[%emt 0:03:30]} 9. Qd2 {[%emt 0:00:30]} Bg7 {[%emt 0:00:30]} 10. Bh6 {[%emt 0:00:30]} O-O {[%emt 0:00:30]} 11. Ne4 {[%emt 0:03:30]} Nxe4 {[%emt 0:10:30]} 12. Bxe4 {[%emt 0:00:30]} Bd5 {[%emt 0:00:30]} 13. Bxg7 {[%emt 0:00:30]} Kxg7 {[%emt 0:00:00]} 14. Qe3 {[%emt 0:13:30]} Na6 {[%emt 0:04:00]} 15. Bxd5 {[%emt 0:00:30]} cxd5 {[%emt 0:07:30]} 16. O-O {[%emt 0:03:30]} Nb4 {[%emt 0:03:30]} 17. Qd2 {[%emt 0:04:30]} Nc6 {[%emt 0:00:30]} 18. f4 {[%emt 0:01:30]} e6 {[%emt 0:00:30]} 19. Ng3 {[%emt 0:05:30]} Ne7 {[%emt 0:06:30]} 20. Rae1 {[%emt 0:00:30]} Rac8 {[%emt 0:01:30]} 21. c3 {[%emt 0:00:30]} Rc6 {[%emt 0:01:30]} 22. Re5 {[%emt 0:01:30]} Ng8 {[%emt 0:15:30]} 23. Rf3 {[%emt 0:08:30]} Rfc8 {[%emt 0:00:30]} 24. a3 {[%emt 0:02:30]} b5 {[%emt 0:01:30]} 25. Qe2 {[%emt 0:03:30]} a6 {[%emt 0:02:30]} 26. Rf2 {[%emt 0:00:30]} Nf6 {[%emt 0:03:30]} 27. Rg5 {[%emt 0:03:30]} Kf8 {[%emt 0:09:30]} 28. Re5 {[%emt 0:04:30]} h5 {[%emt 0:00:30]} 29. h3 {[%emt 0:05:30]} h4 {[%emt 0:01:30]} 30. Nf1 {[%emt 0:00:30]} Ne4 {[%emt 0:00:30]} 31. Rxe4 {[%emt 0:00:30]} dxe4 {[%emt 0:00:00]} 32. Qxe4 {[%emt 0:00:00]} Qd5 {[%emt 0:01:00]} 33. Qe1 {[%emt 0:00:00]} a5 {[%emt 0:00:30]} 34. Re2 {[%emt 0:04:30]} b4 {[%emt 0:03:30]} 35. Re5 {[%emt 0:00:30]} Qd8 {[%emt 0:00:30]} 36. d5 {[%emt 0:11:36]} exd5 {[%emt 0:00:30]} 37. cxb4 {[%emt 0:03:14]} Rc1 {[%emt 0:01:30]} 38. Qe3 {[%emt 0:00:35]} d4 {[%emt 0:00:30]} 39. Qd3 {[%emt 0:00:34]} axb4 {[%emt 0:01:30]} 40. axb4 {[%emt 0:00:04]} Ra1 {[%emt 0:02:00]} 41. Re2 {[%emt 0:01:33]} Rcc1 {[%emt 0:00:59]} 42. Rf2 {[%emt 0:00:01]} Rd1 {[%emt 0:00:07]} 43. Qf3 {[%emt 0:03:02]} d3 {[%emt 0:00:18]} 44. f5 {[%emt 0:00:52]} Qd4 {[%emt 0:00:15]} 45. Kh2 {[%emt 0:01:14]} Qd6+ {[%emt 0:04:22]} 46. Kg1 {[%emt 0:01:33]} g5 {[%emt 0:00:28]} 47. f6 {[%emt 0:01:03]} Qd4 {[%emt 0:01:02]} 48. Kh2 {[%emt 0:02:22]} Qf4+ {[%emt 0:01:44]} 49. Qxf4 {[%emt 0:00:17]} gxf4 {[%emt 0:00:00]} 50. Rxf4 {[%emt 0:00:18]} Rxf1 {[%emt 0:00:00]} 51. Rxh4 {[%emt 0:00:09]} Rxf6 {[%emt 0:00:32]} 52. Rd4 {[%emt 0:00:30]} Rd1 {[%emt 0:00:00]} 53. Kg3 {[%emt 0:01:26]} d2 {[%emt 0:00:00]} 54. b5 {[%emt 0:00:00]} Ke7 {[%emt 0:00:02]} 55. b6 {[%emt 0:03:04]} Rxb6 {[%emt 0:00:42]} 56. Kf2 {[%emt 0:00:09]} Rd6 {[%emt 0:00:00]} 0-1

[Event "Turkish Second League 2019"]
[Site "Konya"]
[Date "2019.07.27"]
[Round "8"]
[White "Ozturk, Efe Hakan"]
[Black "Ozdemir, Serhan Berat"]
[Result "1/2-1/2"]
[ECO "C01"]
[WhiteElo "2017"]
[BlackElo "1985"]
[Annotator "NA"]
[PlyCount "60"]
[EventDate "2019.07.22"]
[EventType "team-tourn"]
[EventCountry "TUR"]
[SourceTitle "playchess.com"]
[Source "ChessBase"]
[SourceQuality "1"]
[TimeControl "5400+30"]

1. e4 e6 {[%emt 0:00:30]} 2. d4 {[%emt 0:01:00]} d5 {[%emt 0:00:00]} 3. exd5 {[%emt 0:00:30]} exd5 {[%emt 0:00:00]} 4. Bd3 {[%emt 0:00:00]} Bd6 {[%emt 0:00:00]} 5. Ne2 {[%emt 0:00:00]} Ne7 {[%emt 0:00:00]} 6. O-O {[%emt 0:00:30]} O-O {[%emt 0:00:00]} 7. Bf4 {[%emt 0:00:00]} c6 {[%emt 0:00:00]} 8. c3 {[%emt 0:00:00]} Bf5 {[%emt 0:00:30]} 9. Bxd6 {[%emt 0:00:30]} Qxd6 {[%emt 0:00:30]} 10. Bxf5 {[%emt 0:00:30]} Nxf5 {[%emt 0:00:30]} 11. Ng3 {[%emt 0:00:30]} Nxg3 {[%emt 0:00:00]} 12. hxg3 {[%emt 0:00:00]} Nd7 {[%emt 0:00:00]} 13. Nd2 {[%emt 0:00:00]} Rfe8 {[%emt 0:00:00]} 14. Re1 {[%emt 0:00:00]} Nf6 {[%emt 0:00:00]} 15. Nf3 {[%emt 0:00:00]} Rxe1+ {[%emt 0:00:30]} 16. Qxe1 {[%emt 0:00:30]} Re8 {[%emt 0:00:00]} 17. Qf1 {[%emt 0:00:00]} Kf8 {[%emt 0:00:00]} 18. Re1 {[%emt 0:00:00]} Rxe1 {[%emt 0:00:30]} 19. Qxe1 {[%emt 0:00:30]} Qe7 {[%emt 0:00:30]} 20. Kf1 {[%emt 0:00:30]} Qxe1+ {[%emt 0:00:00]} 21. Kxe1 {[%emt 0:00:00]} Ke7 {[%emt 0:00:00]} 22. Ke2 {[%emt 0:00:00]} Ne4 {[%emt 0:00:00]} 23. Nd2 {[%emt 0:00:00]} Kd7 {[%emt 0:00:00]} 24. f3 {[%emt 0:00:00]} f6 {[%emt 0:00:00]} 25. Ke3 {[%emt 0:00:30]} g5 {[%emt 0:00:00]} 26. g4 {[%emt 0:00:00]} Ke6 {[%emt 0:00:00]} 27. g3 {[%emt 0:00:00]} h6 {[%emt 0:00:00]} 28. a3 {[%emt 0:00:00]} a5 {[%emt 0:00:00]} 29. a4 {[%emt 0:00:00]} b6 {[%emt 0:00:00]} 30. b3 {[%emt 0:00:00]} Kd6 {[%emt 0:00:00]} 1/2-1/2

[Event "Turkish Second League 2019"]
[Site "Konya"]
[Date "2019.07.27"]
[Round "8"]
[White "Yildizak, Goksel"]
[Black "Buyukasik, Diyap"]
[Result "1/2-1/2"]
[ECO "A50"]
[WhiteElo "1950"]
[BlackElo "2268"]
[Annotator "NA"]
[PlyCount "61"]
[EventDate "2019.07.22"]
[EventType "team-tourn"]
[EventCountry "TUR"]
[SourceTitle "playchess.com"]
[Source "ChessBase"]
[SourceQuality "1"]
[TimeControl "5400+30"]

1. d4 Nf6 {[%emt 0:00:30]} 2. Nf3 {[%emt 0:00:00]} b6 {[%emt 0:00:30]} 3. g3 {[%emt 0:00:30]} Bb7 {[%emt 0:00:00]} 4. Bg2 {[%emt 0:00:00]} g6 {[%emt 0:01:00]} 5. O-O {[%emt 0:00:00]} Bg7 {[%emt 0:00:30]} 6. c4 {[%emt 0:00:30]} e6 {[%emt 0:00:30]} 7. Nc3 {[%emt 0:02:30]} Ne4 {[%emt 0:05:30]} 8. Nxe4 {[%emt 0:11:30]} Bxe4 {[%emt 0:01:30]} 9. Ng5 {[%emt 0:04:30]} Bxg2 {[%emt 0:00:30]} 10. Kxg2 {[%emt 0:00:30]} O-O {[%emt 0:02:30]} 11. e4 {[%emt 0:03:30]} d6 {[%emt 0:10:30]} 12. f4 {[%emt 0:01:30]} h6 {[%emt 0:13:30]} 13. Nf3 {[%emt 0:00:30]} c5 {[%emt 0:01:30]} 14. b3 {[%emt 0:12:30]} Nc6 {[%emt 0:19:30]} 15. Bb2 {[%emt 0:01:30]} Qf6 {[%emt 0:10:30]} 16. e5 {[%emt 0:01:30]} dxe5 {[%emt 0:05:30]} 17. dxe5 {[%emt 0:00:30]} Qe7 {[%emt 0:04:30]} 18. Qe2 {[%emt 0:01:30]} Rfd8 {[%emt 0:00:56]} 19. Rfd1 {[%emt 0:00:30]} a5 {[%emt 0:02:47]} 20. a4 {[%emt 0:00:30]} Qc7 {[%emt 0:02:32]} 21. h4 {[%emt 0:00:30]} Ne7 {[%emt 0:02:18]} 22. Kh2 {[%emt 0:03:30]} Rxd1 {[%emt 0:01:51]} 23. Rxd1 {[%emt 0:03:30]} Rd8 {[%emt 0:01:15]} 24. Rxd8+ {[%emt 0:02:30]} Qxd8 {[%emt 0:00:01]} 25. Qd2 {[%emt 0:00:00]} Qa8 {[%emt 0:02:33]} 26. Qd3 {[%emt 0:00:00]} Nc6 {[%emt 0:04:28]} 27. Bc3 {[%emt 0:02:30]} Qb7 {[%emt 0:01:55]} 28. Kg1 {[%emt 0:04:30]} Ne7 {[%emt 0:00:59]} 29. Kh2 {[%emt 0:02:30]} Nf5 {[%emt 0:00:32]} 30. Qd8+ {[%emt 0:02:30]} Bf8 {[%emt 0:00:56]} 31. Qd3 {[%emt 0:00:00]} 1/2-1/2

[Event "Turkish Second League 2019"]
[Site "Konya"]
[Date "2019.07.27"]
[Round "8"]
[White "Cilek, Bora"]
[Black "Buke, Furkan"]
[Result "1/2-1/2"]
[ECO "D14"]
[WhiteElo "1948"]
[BlackElo "1959"]
[Annotator "NA"]
[PlyCount "62"]
[EventDate "2019.07.22"]
[EventType "team-tourn"]
[EventCountry "TUR"]
[SourceTitle "playchess.com"]
[Source "ChessBase"]
[SourceQuality "1"]
[TimeControl "5400+30"]

1. d4 d5 2. c4 {[%emt 0:00:00]} c6 {[%emt 0:00:00]} 3. cxd5 {[%emt 0:00:30]} cxd5 {[%emt 0:00:30]} 4. Nc3 {[%emt 0:00:30]} Nc6 {[%emt 0:00:30]} 5. Nf3 {[%emt 0:00:30]} Nf6 {[%emt 0:00:30]} 6. Bf4 {[%emt 0:00:00]} Bf5 {[%emt 0:00:30]} 7. e3 {[%emt 0:00:00]} a6 {[%emt 0:00:30]} 8. a3 {[%emt 0:00:30]} e6 {[%emt 0:00:30]} 9. Bd3 {[%emt 0:00:00]} Bxd3 {[%emt 0:00:00]} 10. Qxd3 {[%emt 0:00:00]} Bd6 {[%emt 0:00:00]} 11. Bxd6 {[%emt 0:00:30]} Qxd6 {[%emt 0:00:30]} 12. O-O {[%emt 0:00:30]} O-O {[%emt 0:00:30]} 13. Rfc1 {[%emt 0:00:30]} Rfc8 {[%emt 0:00:30]} 14. Rc2 {[%emt 0:00:30]} Rc7 {[%emt 0:00:30]} 15. Rac1 {[%emt 0:00:30]} Rac8 {[%emt 0:00:30]} 16. h3 {[%emt 0:00:30]} h6 {[%emt 0:00:30]} 17. b4 {[%emt 0:00:30]} b5 {[%emt 0:00:30]} 18. Na2 {[%emt 0:00:30]} Na7 {[%emt 0:00:30]} 19. Rxc7 {[%emt 0:00:30]} Rxc7 {[%emt 0:00:30]} 20. Rxc7 {[%emt 0:00:30]} Qxc7 {[%emt 0:00:30]} 21. Qc3 {[%emt 0:00:30]} Qxc3 {[%emt 0:00:30]} 22. Nxc3 {[%emt 0:00:30]} Nc6 {[%emt 0:00:30]} 23. Nd2 {[%emt 0:00:30]} Nd7 {[%emt 0:00:30]} 24. Nb3 {[%emt 0:00:30]} Nb6 {[%emt 0:00:30]} 25. Nc5 {[%emt 0:00:30]} Nc4 {[%emt 0:00:30]} 26. Nxa6 {[%emt 0:00:30]} Nxa3 {[%emt 0:00:30]} 27. Nc7 {[%emt 0:00:30]} Nxb4 {[%emt 0:00:30]} 28. N7xb5 {[%emt 0:00:30]} Nxb5 {[%emt 0:00:30]} 29. Nxb5 {[%emt 0:00:30]} Kf8 {[%emt 0:00:30]} 30. h4 {[%emt 0:00:30]} h5 {[%emt 0:00:30]} 31. g3 {[%emt 0:00:30]} g6 {[%emt 0:00:30]} 1/2-1/2

[Event "Turkish Second League 2019"]
[Site "Konya"]
[Date "2019.07.27"]
[Round "8"]
[White "Oztekin, Kerem Can"]
[Black "Uyan, Ata Gunduz"]
[Result "0-1"]
[ECO "B40"]
[WhiteElo "1933"]
[BlackElo "1781"]
[Annotator "NA"]
[PlyCount "96"]
[EventDate "2019.07.22"]
[EventType "team-tourn"]
[EventCountry "TUR"]
[SourceTitle "playchess.com"]
[Source "ChessBase"]
[SourceQuality "1"]
[TimeControl "5400+30"]

1. e4 {[%emt 0:00:30]} e6 {[%emt 0:00:30]} 2. b3 {[%emt 0:03:30]} c5 {[%emt 0:02:30]} 3. Bb2 {[%emt 0:00:30]} a6 {[%emt 0:00:30]} 4. Nf3 {[%emt 0:09:30]} Nc6 {[%emt 0:02:30]} 5. Be2 {[%emt 0:05:30]} d6 {[%emt 0:00:30]} 6. d4 {[%emt 0:04:30]} cxd4 {[%emt 0:02:30]} 7. Nxd4 {[%emt 0:01:30]} Qa5+ {[%emt 0:15:30]} 8. Nd2 {[%emt 0:09:30]} Nxd4 {[%emt 0:10:30]} 9. Bxd4 {[%emt 0:00:00]} e5 {[%emt 0:00:30]} 10. Bb2 {[%emt 0:09:00]} Nf6 {[%emt 0:03:30]} 11. O-O {[%emt 0:00:00]} Be7 {[%emt 0:04:30]} 12. Nc4 {[%emt 0:14:00]} Qc7 {[%emt 0:00:30]} 13. Qd3 {[%emt 0:00:30]} Be6 {[%emt 0:01:30]} 14. Ne3 {[%emt 0:00:30]} O-O {[%emt 0:11:30]} 15. c4 {[%emt 0:00:00]} Nd7 {[%emt 0:10:30]} 16. Ba3 {[%emt 0:11:00]} Nc5 {[%emt 0:01:30]} 17. Bxc5 {[%emt 0:00:00]} dxc5 {[%emt 0:05:30]} 18. Qc3 {[%emt 0:07:00]} Rfd8 {[%emt 0:02:30]} 19. Rfd1 {[%emt 0:08:40]} Rd4 {[%emt 0:02:30]} 20. Bf3 {[%emt 0:00:44]} Rad8 {[%emt 0:02:28]} 21. Qc2 {[%emt 0:07:44]} Qa5 {[%emt 0:02:29]} 22. Nd5 {[%emt 0:02:00]} Bxd5 {[%emt 0:00:37]} 23. exd5 {[%emt 0:00:29]} Bd6 {[%emt 0:00:47]} 24. Be4 {[%emt 0:03:22]} g6 {[%emt 0:03:39]} 25. Bf3 {[%emt 0:01:53]} Re8 {[%emt 0:00:55]} 26. Be2 {[%emt 0:00:30]} Kg7 {[%emt 0:00:50]} 27. Qb2 {[%emt 0:00:33]} Qd8 {[%emt 0:00:33]} 28. Rxd4 {[%emt 0:00:35]} exd4 {[%emt 0:00:04]} 29. g3 {[%emt 0:00:06]} h5 {[%emt 0:00:50]} 30. Bf1 {[%emt 0:00:46]} h4 {[%emt 0:00:56]} 31. Qd2 {[%emt 0:00:08]} hxg3 {[%emt 0:00:49]} 32. hxg3 {[%emt 0:00:10]} Qe7 {[%emt 0:00:29]} 33. Bg2 {[%emt 0:00:52]} Qe5 {[%emt 0:00:55]} 34. Kf1 {[%emt 0:00:10]} Qf5 {[%emt 0:01:06]} 35. Kg1 {[%emt 0:01:04]} Qe5 {[%emt 0:02:54]} 36. Kf1 {[%emt 0:00:30]} Qf6 {[%emt 0:00:00]} 37. Qd3 {[%emt 0:00:08]} Re3 {[%emt 0:00:03]} 38. Qd2 {[%emt 0:00:27]} Rxg3 {[%emt 0:00:39]} 39. Re1 {[%emt 0:00:34]} Rc3 {[%emt 0:00:51]} 40. Be4 {[%emt 0:00:37]} Qh4 {[%emt 0:00:38]} 41. b4 {[%emt 0:00:42]} b6 {[%emt 0:03:09]} 42. Bg2 {[%emt 0:00:29]} Rxc4 {[%emt 0:00:45]} 43. Re4 {[%emt 0:00:22]} Qh5 {[%emt 0:00:34]} 44. bxc5 {[%emt 0:01:00]} bxc5 {[%emt 0:00:02]} 45. Ke1 {[%emt 0:00:16]} Qxd5 {[%emt 0:01:23]} 46. Rh4 {[%emt 0:00:05]} Qxg2 {[%emt 0:00:42]} 47. Qh6+ {[%emt 0:00:30]} Kf6 {[%emt 0:00:06]} 48. Qh8+ {[%emt 0:01:22]} Ke7 {[%emt 0:00:02]} 0-1